lending/lending_fUSD_20240710
["ID","MTS","AMOUNT","RATE_DAILY","PERIOD"]
[331666618,1720613449223,-500.0,0.00013808,2]
[331666619,1720613449232,-500.0,0.00013808,2]
[331666620,1720613449247,-500.0,0.00013808,2]
[331666621,1720613449256,-500.0,0.00013808,2]
[331666622,1720613449266,-87.37732358,0.00013808,2]
[331666623,1720613449285,-412.62267642,0.00013808,2]
[331666624,1720613449295,-247.37732357,0.00013808,2]
[331666625,1720613449307,-252.62267643,0.00013808,2]
[331666626,1720613449317,-212.07923693,0.00013808,2]
[331666627,1720613449329,-287.92076307,0.00013808,2]
[331666628,1720613449339,-461.69923693,0.00013808,2]
[331666629,1720613449354,-38.30076307,0.00013808,2]
[331666630,1720613449363,-500.0,0.00013808,2]
[331666631,1720613449374,-500.0,0.00013808,2]
[331666632,1720613449384,-500.0,0.00013808,2]
[331666633,1720613449395,-215.87057958,0.00013808,2]
[331666634,1720613449563,-200.91297198,0.00013574,2]
[331666635,1720613449573,-1700.91942042,0.00013808,2]
[331666636,1720613449583,-500.0,0.00013808,2]
[331666637,1720613449592,-500.0,0.00013808,2]
[331666638,1720613449603,-526.13,0.00013808,2]
[331666639,1720613449612,-750.64,0.00013808,2]
[331666640,1720613449624,-500.0,0.00013808,2]
[331666641,1720613449634,-563.32,0.00013808,2]
[331666642,1720613449643,-216.15840565,0.00013808,2]
[331666643,1720613449662,-165.69128862,0.00013574,2]
[331666644,1720613449671,-283.84159435,0.00013808,2]
[331666645,1720613449681,-246.19111703,0.00013808,2]
[331666646,1720613449693,-266.71888297,0.00013808,2]
[331666647,1720613449703,-104.71303514,0.00013808,2]
[331666648,1720613449721,-500.0,0.00013698,2]
[331666649,1720613449730,-395.28696486,0.00013808,2]
[331666650,1720613449740,-500.0,0.00013808,2]
[331666651,1720613449749,-500.0,0.00013808,2]
[331666652,1720613449758,-500.0,0.00013808,2]
[331666653,1720613449768,-500.0,0.00013808,2]
[331666654,1720613449777,-500.0,0.00013808,2]
[331666655,1720613449787,-500.0,0.00013808,2]
[331666656,1720613449796,-500.0,0.00013808,2]
[331666657,1720613449805,-454.25942186,0.00013808,2]
[331666658,1720613449815,-500.0,0.00013808,2]
[331666659,1720613449824,-500.0,0.00013808,2]
[331666660,1720613449833,-500.0,0.00013808,2]
[331666661,1720613449842,-152.27355213,0.00013812,2]
[331666662,1720613449851,-500.0,0.00013814,2]
[331666663,1720613449861,-352.97202332,0.00013814,2]
[331666664,1720613476083,29110.0626271,6.762e-05,7]
[331666666,1720613520410,158.62866737,6.762e-05,2]
[331666691,1720613527565,348.36194352,6.762e-05,2]
[331666692,1720613530557,299.71805648,6.762e-05,2]
[331666693,1720613530580,921.53916331,6.762e-05,2]
[331666694,1720613550304,1219.03767275,6.762e-05,2]
[331666695,1720613563907,158.62866737,8.196e-05,2]
[331666696,1720613569049,1221.25721979,8.196e-05,2]
[331666697,1720613593040,6627.84044599,0.00011199,2]
[331666698,1720613593068,946.5345113,0.00011199,2]
[331666702,1720613610228,150.0,8.196e-05,2]
[331666703,1720613610251,150.0,8.196e-05,2]
[331666704,1720613610272,150.0,8.196e-05,2]
[331666705,1720613610292,150.0,8.196e-05,2]
[331666706,1720613610313,150.0,8.196e-05,2]
[331666707,1720613610334,150.0,8.196e-05,2]
[331666708,1720613610354,150.0,8.196e-05,2]
[331666709,1720613610374,150.0,8.196e-05,2]
[331666710,1720613610395,21.25721979,8.196e-05,2]
[331666711,1720613618917,150.0,8.196e-05,2]
[331666712,1720613618939,8.62866737,8.196e-05,2]
[331666713,1720613622681,150.0,9.934e-05,2]
[331666714,1720613622703,8.54494384,9.934e-05,2]
[331666715,1720613626379,141.45505616,9.934e-05,2]
[331666716,1720613626402,150.0,9.934e-05,2]
[331666717,1720613626425,150.0,9.934e-05,2]
[331666718,1720613626448,85.96391668,9.934e-05,2]
[331666719,1720613637628,150.0,0.0001,2]
[331666720,1720613637650,150.0,0.0001,2]
[331666721,1720613637673,150.0,0.0001,2]
[331666722,1720613637695,150.0,0.0001,2]
[331666723,1720613637716,150.0,0.0001,2]
[331666724,1720613637738,150.0,0.0001,2]
[331666725,1720613637765,150.0,0.0001,2]
[331666726,1720613637788,8.60021211,0.0001,2]
[331666727,1720613650090,150.0,9.934e-05,2]
[331666728,1720613650116,150.0,9.934e-05,2]
[331666729,1720613650138,150.0,9.934e-05,2]
[331666730,1720613650162,150.0,9.934e-05,2]
[331666731,1720613650183,150.0,9.934e-05,2]
[331666732,1720613650204,150.0,9.934e-05,2]
[331666733,1720613650225,150.0,9.934e-05,2]
[331666734,1720613650248,150.0,9.934e-05,2]
[331666735,1720613650268,21.25721979,9.934e-05,2]
[331666736,1720613656465,150.0,0.0001,2]
[331666737,1720613656488,150.0,0.0001,2]
[331666738,1720613656516,253.24655456,0.0001,2]
[331666739,1720613658623,299.76455308,0.0001,2]
[331666740,1720613680832,179.56441549,0.0001,2]
[331666741,1720613680854,1.62950269,0.0001,2]
[331666742,1720613683574,150.0,0.0001,2]
[331666743,1720613683599,261.97119588,0.0001,2]
[331666744,1720613694594,411.97119588,0.0001,2]
[331666747,1720613722123,150.0,0.00011199,2]
[331666748,1720613722145,150.0,0.00011199,2]
[331666749,1720613722166,150.0,0.00011199,2]
[331666750,1720613722188,150.0,0.00011199,2]
[331666751,1720613722216,150.0,0.00011199,2]
[331666752,1720613722237,150.0,0.00011199,2]
[331666753,1720613722260,150.0,0.00011199,2]
[331666754,1720613722283,150.0,0.00011199,2]
[331666755,1720613722307,2550.0,0.00011199,2]
[331666756,1720613730481,158.62866737,0.0001,2]
[331666757,1720613739564,1221.25721979,0.0001,2]
[331666758,1720613749442,1050.79423413,0.00011199,2]
[331666759,1720613800377,453.67,0.00010853,2]
[331666760,1720613818328,150.0,0.00011199,2]
[331666761,1720613818358,2930.31235881,0.00011199,2]
[331666762,1720613818969,150.0,0.00011199,2]
[331666763,1720613818992,150.0,0.00011199,2]
[331666764,1720613819016,150.0,0.00011199,2]
[331666765,1720613819043,103.24655456,0.00011199,2]
[331666766,1720613819097,46.75344544,0.00011199,2]
[331666767,1720613819120,150.0,0.00011199,2]
[331666768,1720613819144,150.0,0.00011199,2]
[331666769,1720613819167,150.0,0.00011199,2]
[331666770,1720613819192,150.0,0.00011199,2]
[331666771,1720613819216,150.0,0.00011199,2]
[331666772,1720613819242,403.24655456,0.00011199,2]
[331666773,1720613822915,150.0,0.00011199,2]
[331666774,1720613822937,8.62866737,0.00011199,2]
[331666775,1720613824564,6773.67483361,0.00011199,2]
[331666776,1720613854361,150.0,0.00010853,2]
[331666777,1720613854383,5.0,0.00010853,2]
[331666778,1720613855563,728.37235128,0.00010853,2]
[331666779,1720613882606,150.0,0.00011199,2]
[331666780,1720613882630,150.0,0.00011199,2]
[331666781,1720613882652,150.0,0.00011199,2]
[331666782,1720613882674,16.21827751,0.00011199,2]
[331666783,1720613899952,133.78172249,0.00011199,2]
[331666784,1720613899973,150.0,0.00011199,2]
[331666785,1720613899993,284.74182994,0.00011199,2]
[331666786,1720613900017,92.95190444,0.00011199,2]
[331666787,1720613908212,355.65707551,0.00011199,2]
[331666788,1720613941949,158.62866737,0.00011199,2]
[331666789,1720613956628,191.83601505,0.00011199,2]
[331666790,1720613960073,168.56,0.00010135,2]
[331666792,1720613989088,2400.0,0.00011199,2]
[331666793,1720613991171,3661.77084752,0.00011199,2]
[331666794,1720614008172,1055.47775488,0.00011199,2]
[331666795,1720614029131,1286.72820101,0.00011199,2]
[331666796,1720614039207,703.5174632,0.00011199,2]
[331666797,1720614056748,623.83746842,0.00011199,2]
[331666798,1720614066948,258.13696723,0.00011199,2]
[331666799,1720614069943,263.95954707,0.00011199,2]
[331666800,1720614114274,205.54834643,0.00011199,2]
[331666801,1720614138187,880.74846591,0.00011199,2]
[331666802,1720614164365,155.0,0.00011199,2]
[331666804,1720614178124,155.0,0.00011199,2]
[331666805,1720614189168,299.88853968,0.00011199,2]
[331666806,1720614208642,155.0,0.00011199,2]
[331666807,1720614249975,155.0,0.00011199,2]
[331666808,1720614252331,424.96693983,0.00011199,2]
[331666809,1720614267383,155.0,0.00011199,2]
[331666810,1720614282375,155.0,0.00011199,2]
[331666811,1720614341846,9236.41322618,0.00011199,2]
[331666812,1720614362561,410.2183359,0.00011199,2]
[331666813,1720614382477,304.62275169,0.00011199,2]
[331666814,1720614384229,430.98,0.00010718,2]
[331666815,1720614385746,2376.51629851,0.00011199,2]
[331666816,1720614438459,553.58196334,0.00011199,2]
[331666817,1720614457204,-167.56,0.00013742,3]
[331666818,1720614457242,-770.58,0.000138,3]
[331666819,1720614457297,-700.0,0.000139,5]
[331666820,1720614457348,-2000.0,0.00013973,3]
[331666821,1720614457371,-1392.445814,0.00014,3]
[331666822,1720614472381,155.0,0.00011199,2]
[331666823,1720614481815,159.1434954,0.00011199,2]
[331666824,1720614509361,266.53572185,0.00011199,2]
[331666826,1720614532798,205.54834643,0.00011199,2]
[331666827,1720614541085,155.0,0.00011199,2]
[331666828,1720614557716,-11488.0,0.000156,5]
[331666829,1720614571587,1387.04989964,0.00011199,2]
[331666836,1720614630456,-11488.0,0.000156,5]
[331666841,1720614632116,-358.56718894,0.00012214,2]
[331666842,1720614632126,-352.31565129,0.00012273,2]
[331666843,1720614632137,-155.57608458,0.00012302,2]
[331666844,1720614632147,-202.8209654,0.00012302,2]
[331666845,1720614632157,-155.0,0.00012314,2]
[331666846,1720614632168,-366.58364766,0.00012314,2]
[331666847,1720614632178,-250.0,0.00012557,2]
[331666848,1720614632188,-150.0,0.000126,2]
[331666849,1720614632197,-394.57,0.00012618,2]
[331666850,1720614632207,-422.1015919,0.0001263,2]
[331666857,1720614633656,-577.8984081,0.0001263,2]
[331666858,1720614633668,-1126.43961043,0.00012634,2]
[331666859,1720614633680,-363.27038957,0.00012634,2]
[331666860,1720614633691,-167.97,0.00012688,2]
[331666861,1720614633700,-168.23,0.00012781,2]
[331666862,1720614633709,-155.40245822,0.000129,2]
[331666863,1720614633718,-497.33,0.000129,2]
[331666864,1720614633727,-188.95,0.00012904,2]
[331666865,1720614633737,-430.98,0.00012981,2]
[331666866,1720614633746,-2376.51629851,0.00013128,2]
[331666867,1720614633755,-210.02763994,0.00013472,2]
[331666868,1720614633764,-247.42401865,0.000135,2]
[331666869,1720614633773,-624.74864981,0.00013516,2]
[331666870,1720614633783,-364.41692002,0.00013516,2]
[331666871,1720614633792,-155.0,0.00013543,2]
[331666872,1720614633801,-225.94900981,0.00013543,2]
[331666873,1720614633811,-205.42208699,0.00013574,2]
[331666874,1720614633820,-269.58348497,0.00013574,2]
[331666875,1720614633828,-285.84416122,0.00013574,2]
[331666876,1720614633840,-28.82386887,0.00013574,2]
[331666877,1720614633849,-299.76455308,0.00013574,2]
[331666878,1720614633859,-10713.5891,0.00013653,2]
[331666879,1720614633870,-177.94501,0.0001368,2]
[331666880,1720614633879,-500.0,0.00013698,2]
[331666881,1720614633890,-169.68145013,0.00013698,2]
[331666882,1720614633899,-500.0,0.00013698,2]
[331666883,1720614633908,-500.0,0.00013698,2]
[331666884,1720614633918,-500.0,0.00013698,2]
[331666885,1720614633927,-500.0,0.00013698,2]
[331666886,1720614633937,-500.0,0.00013698,2]
[331666887,1720614633948,-500.0,0.00013698,2]
[331666888,1720614633958,-500.0,0.00013698,2]
[331666889,1720614633967,-500.0,0.00013698,2]
[331666890,1720614633976,-500.0,0.00013698,2]
[331666891,1720614633985,-500.0,0.00013698,2]
[331666892,1720614633995,-500.0,0.00013698,2]
[331666893,1720614634004,-500.0,0.00013698,2]
[331666894,1720614634014,-500.0,0.00013698,2]
[331666895,1720614634023,-500.0,0.00013698,2]
[331666896,1720614634032,-500.0,0.00013698,2]
[331666897,1720614634042,-725.43,0.00013698,2]
[331666898,1720614634051,-500.0,0.00013698,2]
[331666899,1720614634060,-500.0,0.00013698,2]
[331666900,1720614634069,-500.0,0.00013698,2]
[331666901,1720614634079,-500.0,0.00013698,2]
[331666902,1720614634088,-500.0,0.00013698,2]
[331666903,1720614634097,-500.0,0.00013698,2]
[331666904,1720614634106,-500.0,0.00013698,2]
[331666905,1720614634116,-500.0,0.00013698,2]
[331666906,1720614634125,-500.0,0.00013698,2]
[331666907,1720614634134,-500.0,0.00013698,2]
[331666908,1720614634143,-500.0,0.00013698,2]
[331666909,1720614634152,-500.0,0.00013698,2]
[331666910,1720614634161,-500.0,0.00013698,2]
[331666911,1720614634170,-500.0,0.00013698,2]
[331666912,1720614634180,-500.0,0.00013698,2]
[331666913,1720614634189,-500.0,0.00013698,2]
[331666914,1720614634198,-500.0,0.00013698,2]
[331666915,1720614634207,-500.0,0.00013698,2]
[331666916,1720614634216,-203.26601792,0.00013698,2]
[331666917,1720614634230,-296.73398208,0.00013698,2]
[331666918,1720614634240,-256.84728342,0.00013698,2]
[331666919,1720614634252,-243.15271658,0.00013698,2]
[331666920,1720614634262,-500.0,0.00013698,2]
[331666921,1720614634271,-299.34728342,0.00013698,2]
[331666922,1720614634284,-200.65271658,0.00013698,2]
[331666923,1720614634294,-500.0,0.00013698,2]
[331666924,1720614634303,-5.45759775,0.00013698,2]
[331666925,1720614634316,-494.54240225,0.00013698,2]
[331666926,1720614634326,-500.0,0.00013698,2]
[331666927,1720614634335,-352.09533729,0.00013698,2]
[331666928,1720614634346,-161.04466271,0.00013698,2]
[331666929,1720614634357,-500.0,0.00013698,2]
[331666930,1720614634366,-500.0,0.00013698,2]
[331666931,1720614634375,-500.0,0.00013698,2]
[331666932,1720614634385,-500.0,0.00013698,2]
[331666933,1720614634394,-500.0,0.00013698,2]
[331666934,1720614634403,-500.0,0.00013698,2]
[331666935,1720614634412,-504.54,0.00013698,2]
[331666936,1720614634422,-500.0,0.00013698,2]
[331666937,1720614634431,-582.02,0.00013698,2]
[331666938,1720614634442,-500.0,0.00013698,2]
[331666939,1720614634453,-500.0,0.00013698,2]
[331666940,1720614634463,-500.0,0.00013698,2]
[331666941,1720614634472,-500.0,0.00013698,2]
[331666942,1720614634488,-500.0,0.00013698,2]
[331666943,1720614634502,-500.0,0.00013698,2]
[331666944,1720614634513,-500.0,0.00013698,2]
[331666945,1720614634522,-500.0,0.00013698,2]
[331666946,1720614634533,-529.82,0.00013698,2]
[331666947,1720614634544,-623.84,0.00013698,2]
[331666948,1720614634554,-500.0,0.00013698,2]
[331666949,1720614634564,-500.0,0.00013698,2]
[331666950,1720614634574,-500.0,0.00013698,2]
[331666951,1720614634584,-500.0,0.00013698,2]
[331666952,1720614634593,-500.0,0.00013698,2]
[331666953,1720614634602,-500.0,0.00013698,2]
[331666954,1720614634612,-250.0,0.00013699,2]
[331666955,1720614634621,-205.55123944,0.00013708,2]
[331666956,1720614634631,-15896.91611528,0.00013713,2]
[331666974,1720614638139,-371.59143874,0.00013574,2]
[331666978,1720614638846,-148.15885094,0.00013574,2]
[331666979,1720614638855,-3028.62880496,0.00013713,2]
[331666980,1720614638874,-18860.85067976,0.00013713,2]
[331666981,1720614638885,-500.0,0.00013752,2]
[331666982,1720614638894,-500.0,0.00013752,2]
[331666983,1720614638904,-500.0,0.00013752,2]
[331666984,1720614638913,-500.0,0.00013752,2]
[331666985,1720614638924,-500.0,0.00013752,2]
[331666986,1720614638934,-500.0,0.00013752,2]
[331666987,1720614638943,-500.0,0.00013752,2]
[331666988,1720614638953,-500.0,0.00013752,2]
[331666989,1720614638964,-199.84230704,0.00013752,2]
[331666990,1720614638974,-500.0,0.00013752,2]
[331666991,1720614638984,-500.0,0.00013752,2]
[331666992,1720614638993,-150.0,0.00013752,2]
[331666993,1720614639002,-500.0,0.00013752,2]
[331666994,1720614639012,-500.0,0.00013752,2]
[331666995,1720614639021,-500.0,0.00013752,2]
[331666996,1720614639030,-500.0,0.00013752,2]
[331666997,1720614639039,-580.67467221,0.00013752,2]
[331666998,1720614639048,-500.0,0.00013752,2]
[331666999,1720614639058,-500.0,0.00013752,2]
[331667000,1720614639067,-500.0,0.00013752,2]
[331667001,1720614639077,-447.1035298,0.00013752,2]
[331667002,1720614639111,-155.0,0.00013516,2]
[331667003,1720614639122,-52.8964702,0.00013752,2]
[331667004,1720614639132,-500.0,0.00013752,2]
[331667005,1720614639142,-627.75,0.00013752,2]
[331667006,1720614639370,-500.0,0.00013752,2]
[331667007,1720614639381,-500.0,0.00013752,2]
[331667008,1720614639391,-500.0,0.00013752,2]
[331667009,1720614639401,-500.0,0.00013752,2]
[331667010,1720614639410,-500.0,0.00013752,2]
[331667011,1720614639420,-500.0,0.00013752,2]
[331667012,1720614639432,-500.0,0.00013752,2]
[331667013,1720614639444,-500.0,0.00013752,2]
[331667014,1720614639455,-500.0,0.00013752,2]
[331667015,1720614639466,-500.0,0.00013752,2]
[331667016,1720614639476,-500.0,0.00013752,2]
[331667017,1720614639486,-253.91568651,0.00013752,2]
[331667018,1720614640176,-246.08431349,0.00013752,2]
[331667019,1720614640187,-500.0,0.00013752,2]
[331667020,1720614640198,-500.0,0.00013752,2]
[331667021,1720614640208,-500.0,0.00013752,2]
[331667022,1720614640218,-422.51211651,0.00013752,2]
[331667023,1720614640231,-77.48788349,0.00013752,2]
[331667024,1720614640240,-500.0,0.00013752,2]
[331667025,1720614640250,-438.25281739,0.00013752,2]
[331667026,1720614640263,-61.74718261,0.00013752,2]
[331667027,1720614640275,-500.0,0.00013752,2]
[331667028,1720614640285,-500.0,0.00013752,2]
[331667029,1720614640296,-500.0,0.00013752,2]
[331667030,1720614640306,-500.0,0.00013752,2]
[331667031,1720614640316,-206.60750546,0.00013752,2]
[331667032,1720614640325,-500.0,0.00013752,2]
[331667033,1720614640335,-500.0,0.00013752,2]
[331667034,1720614640345,-500.0,0.00013752,2]
[331667035,1720614640355,-500.0,0.00013752,2]
[331667036,1720614640365,-500.0,0.00013752,2]
[331667037,1720614640375,-500.0,0.00013752,2]
[331667038,1720614640385,-500.0,0.00013752,2]
[331667039,1720614640395,-500.0,0.00013752,2]
[331667040,1720614640404,-500.0,0.00013752,2]
[331667041,1720614640414,-500.0,0.00013752,2]
[331667042,1720614640424,-500.0,0.00013752,2]
[331667043,1720614640435,-500.0,0.00013752,2]
[331667044,1720614640446,-500.0,0.00013752,2]
[331667045,1720614640457,-265.60264045,0.00013752,2]
[331667046,1720614640473,-234.39735955,0.00013752,2]
[331667047,1720614640497,-235.52372046,0.00013752,2]
[331667048,1720614640520,-500.0,0.00013752,2]
[331667049,1720614640543,-500.0,0.00013752,2]
[331667050,1720614640567,-1662.67,0.00013752,2]
[331667051,1720614640591,-500.0,0.00013752,2]
[331667052,1720614640612,-500.0,0.00013752,2]
[331667053,1720614640622,-500.0,0.00013752,2]
[331667054,1720614640632,-500.0,0.00013752,2]
[331667055,1720614640642,-989.85,0.00013752,2]
[331667056,1720614640651,-500.0,0.00013752,2]
[331667057,1720614640660,-630.96,0.00013752,2]
[331667058,1720614640670,-500.0,0.00013752,2]
[331667060,1720614640680,-828.06,0.00013752,2]
[331667062,1720614640689,-500.87,0.00013752,2]
[331667064,1720614640699,-500.0,0.00013752,2]
[331667066,1720614640709,-631.74,0.00013752,2]
[331667069,1720614640719,-500.0,0.00013752,2]
[331667072,1720614640728,-500.0,0.00013752,2]
[331667075,1720614640738,-500.0,0.00013752,2]
[331667077,1720614640747,-500.0,0.00013752,2]
[331667079,1720614640758,-502.04,0.00013752,2]
[331667081,1720614640767,-500.0,0.00013752,2]
[331667083,1720614640777,-500.0,0.00013752,2]
[331667085,1720614640786,-945.45,0.00013752,2]
[331667087,1720614640795,-500.0,0.00013752,2]
[331667089,1720614640805,-500.0,0.00013752,2]
[331667091,1720614640815,-548.54,0.00013752,2]
[331667093,1720614640824,-500.0,0.00013752,2]
[331667095,1720614640834,-500.0,0.00013752,2]
[331667097,1720614640844,-500.0,0.00013752,2]
[331667099,1720614640854,-500.0,0.00013752,2]
[331667101,1720614640863,-500.0,0.00013752,2]
[331667103,1720614640875,-500.0,0.00013752,2]
[331667105,1720614640885,-500.0,0.00013752,2]
[331667107,1720614640894,-500.0,0.00013752,2]
[331667109,1720614640903,-500.0,0.00013752,2]
[331667111,1720614640914,-500.0,0.00013752,2]
[331667113,1720614640924,-500.0,0.00013752,2]
[331667115,1720614640934,-500.0,0.00013752,2]
[331667117,1720614640943,-500.0,0.00013752,2]
[331667118,1720614640953,-546.58,0.00013752,2]
[331667119,1720614640963,-500.0,0.00013752,2]
[331667120,1720614640973,-500.0,0.00013752,2]
[331667121,1720614640982,-500.0,0.00013752,2]
[331667122,1720614640992,-500.0,0.00013752,2]
[331667123,1720614641002,-500.0,0.00013752,2]
[331667124,1720614641011,-544.51,0.00013752,2]
[331667125,1720614641021,-500.0,0.00013752,2]
[331667126,1720614641030,-500.0,0.00013752,2]
[331667127,1720614641040,-500.0,0.00013752,2]
[331667128,1720614641049,-500.0,0.00013752,2]
[331667129,1720614641059,-500.0,0.00013752,2]
[331667130,1720614641068,-500.0,0.00013752,2]
[331667131,1720614641077,-500.0,0.00013752,2]
[331667132,1720614641087,-500.0,0.00013752,2]
[331667133,1720614641097,-500.0,0.00013752,2]
[331667134,1720614641106,-500.0,0.00013752,2]
[331667135,1720614641116,-500.0,0.00013752,2]
[331667136,1720614641125,-500.0,0.00013752,2]
[331667137,1720614641135,-500.0,0.00013752,2]
[331667138,1720614641144,-500.0,0.00013752,2]
[331667139,1720614641153,-500.0,0.00013752,2]
[331667140,1720614641163,-500.0,0.00013752,2]
[331667141,1720614641172,-500.0,0.00013752,2]
[331667142,1720614641182,-323.71070119,0.00013752,2]
[331667143,1720614641191,-500.0,0.00013752,2]
[331667144,1720614641205,-500.0,0.00013752,2]
[331667145,1720614641215,-2929.22,0.00013752,2]
[331667146,1720614641224,-500.0,0.00013752,2]
[331667147,1720614641233,-656.81,0.00013752,2]
[331667148,1720614641242,-500.0,0.00013752,2]
[331667149,1720614641252,-500.0,0.00013752,2]
[331667150,1720614641261,-500.0,0.00013752,2]
[331667151,1720614641270,-500.0,0.00013752,2]
[331667152,1720614641280,-500.0,0.00013752,2]
[331667153,1720614641290,-500.0,0.00013752,2]
[331667154,1720614641300,-500.0,0.00013752,2]
[331667155,1720614641310,-500.0,0.00013752,2]
[331667156,1720614641319,-500.0,0.00013752,2]
[331667157,1720614641328,-500.0,0.00013752,2]
[331667158,1720614641338,-500.0,0.00013752,2]
[331667159,1720614641348,-1677.19,0.00013752,2]
[331667160,1720614641357,-500.0,0.00013752,2]
[331667161,1720614641367,-500.0,0.00013752,2]
[331667162,1720614641376,-500.0,0.00013752,2]
[331667163,1720614641386,-500.0,0.00013752,2]
[331667164,1720614641396,-500.0,0.00013752,2]
[331667165,1720614641406,-500.0,0.00013752,2]
[331667166,1720614641415,-500.0,0.00013752,2]
[331667167,1720614641425,-500.0,0.00013752,2]
[331667168,1720614641435,-500.0,0.00013752,2]
[331667169,1720614641446,-1192.18,0.00013752,2]
[331667170,1720614641456,-500.0,0.00013752,2]
[331667171,1720614641466,-500.0,0.00013752,2]
[331667172,1720614641477,-500.0,0.00013752,2]
[331667173,1720614641488,-500.0,0.00013752,2]
[331667174,1720614641498,-500.0,0.00013752,2]
[331667175,1720614641508,-500.0,0.00013752,2]
[331667176,1720614641518,-500.0,0.00013752,2]
[331667177,1720614641527,-500.0,0.00013753,2]
[331667178,1720614641537,-500.0,0.00013753,2]
[331667179,1720614641547,-500.0,0.00013753,2]
[331667180,1720614641557,-500.0,0.00013753,2]
[331667181,1720614641567,-500.0,0.00013753,2]
[331667182,1720614641577,-500.0,0.00013753,2]
[331667183,1720614641587,-500.0,0.00013753,2]
[331667184,1720614641597,-500.0,0.00013753,2]
[331667185,1720614641608,-500.0,0.00013753,2]
[331667186,1720614641618,-500.0,0.00013753,2]
[331667187,1720614641627,-500.0,0.00013753,2]
[331667188,1720614641637,-500.0,0.00013753,2]
[331667189,1720614641647,-500.0,0.00013753,2]
[331667190,1720614641658,-500.0,0.00013753,2]
[331667191,1720614641667,-500.0,0.00013753,2]
[331667192,1720614641677,-725.43,0.00013753,2]
[331667193,1720614641686,-500.0,0.00013753,2]
[331667194,1720614641699,-500.0,0.00013753,2]
[331667195,1720614641708,-500.0,0.00013753,2]
[331667196,1720614641718,-500.0,0.00013753,2]
[331667197,1720614641727,-500.0,0.00013753,2]
[331667198,1720614641737,-500.0,0.00013753,2]
[331667199,1720614641747,-500.0,0.00013753,2]
[331667200,1720614641758,-500.0,0.00013753,2]
[331667201,1720614641767,-500.0,0.00013753,2]
[331667202,1720614641777,-500.0,0.00013753,2]
[331667203,1720614641787,-500.0,0.00013753,2]
[331667204,1720614641797,-500.0,0.00013753,2]
[331667205,1720614641807,-500.0,0.00013753,2]
[331667206,1720614641817,-500.0,0.00013753,2]
[331667207,1720614641827,-500.0,0.00013753,2]
[331667208,1720614641836,-500.0,0.00013753,2]
[331667209,1720614641845,-500.0,0.00013753,2]
[331667210,1720614641855,-500.0,0.00013753,2]
[331667211,1720614641865,-500.0,0.00013753,2]
[331667212,1720614641877,-500.0,0.00013753,2]
[331667213,1720614641887,-500.0,0.00013753,2]
[331667214,1720614641896,-500.0,0.00013753,2]
[331667215,1720614641906,-500.0,0.00013753,2]
[331667216,1720614641915,-500.0,0.00013753,2]
[331667217,1720614641926,-500.0,0.00013753,2]